bitfinex/quotes_ETHUSD_20260306
["timestamp","ask_amount","ask_price","bid_price","bid_amount"]
[1772785690412,0.001,2077.5,2077.4,0.0011]
[1772785694351,0.001,2077.5,2077.4,1.2471]
[1772785695643,0.001,2077.5,2077.4,0.0011]
[1772785695822,0.001,2077.5,2077.1,0.0011]
[1772785697953,0.78738062,2077.5,2077.1,0.0011]
[1772785698259,0.78638062,2077.3,2076.7,0.0011]
[1772785699455,1.20354323,2077.2,2076.7,0.0011]
[1772785702831,1.20354323,2077.2,2076.9,0.0011]
[1772785703030,0.001,2077.1,2076.9,0.0011]
[1772785708569,0.001,2077.1,2076.7,0.0011]
[1772785715272,0.001,2077.1,2076.9,0.0011]
[1772785716075,0.001,2077.1,2076.7,0.0011]
[1772785726861,0.001,2077.1,2076.9,0.0011]
[1772785727062,0.001,2077.5,2077.0,1.243]
[1772785728770,0.001,2077.5,2077.1,1.20360117]
[1772785738797,0.001,2077.5,2077.2,0.0011]
[1772785738975,0.001,2077.3,2077.2,0.0011]
[1772785739175,0.001,2077.5,2077.2,0.0011]
[1772785740400,0.001,2077.5,2077.3,1.245]
[1772785740907,0.001,2077.5,2077.3,2.44845752]
[1772785742502,0.001,2077.5,2077.3,1.245]
[1772785743105,0.001,2077.5,2077.3,1.246]
[1772785744389,0.001,2077.5,2077.2,0.0011]
[1772785744612,0.001,2077.5,2077.2,1.20464054]
[1772785744985,0.001,2077.5,2077.2,0.0011]
[1772785750876,1.24699998,2077.1,2077.0,0.0011]
[1772785751079,0.78750645,2077.5,2077.0,0.0011]
[1772785751080,0.001,2077.3,2077.0,1.20475912]
[1772785751277,0.001,2077.3,2077.0,0.0011]
[1772785751583,0.001,2077.3,2077.1,0.0011]
[1772785766936,0.001,2077.5,2077.1,0.0011]
[1772785767301,0.001,2077.7,2077.1,0.0011]
[1772785767497,0.001,2077.9,2077.1,3.4449959]
[1772785767693,0.002,2077.9,2077.2,3.4438959]
[1772785767923,0.002,2077.9,2077.3,1.253]
[1772785768221,0.001,2078.1,2077.4,1.20342736]
[1772785771431,0.001,2078.1,2077.5,0.43343698]
[1772785771723,0.001,2078.1,2077.4,4.64732326]
[1772785772222,0.001,2078.1,2077.4,1.20342736]
[1772785772429,0.79809673,2078.0,2077.4,1.20342736]
[1772785772597,0.001,2078.1,2077.4,1.20342736]
[1772785773215,0.001,2078.1,2077.4,1.63686434]
[1772785773824,0.001,2078.1,2077.5,0.43343698]
[1772785774005,0.001,2078.1,2077.4,4.64732326]
[1772785774334,0.001,2078.1,2077.4,1.20342736]
[1772785775836,0.001,2077.9,2077.4,1.20342736]
[1772785776517,0.001,2078.1,2077.4,1.20342736]
[1772785777532,0.001,2078.1,2077.4,1.60074459]
[1772785777727,0.001,2078.1,2077.4,4.64732326]
[1772785778638,0.001,2078.5,2077.4,4.64732326]
[1772785779336,0.001,2078.5,2077.4,1.20342736]
[1772785783243,0.001,2078.5,2077.4,7.55342736]
[1772785785337,0.001,2078.5,2077.4,10.99732326]
[1772785785840,0.001,2078.5,2077.5,0.39731723]
[1772785786146,0.001,2078.5,2077.5,6.74731723]
[1772785786929,0.001,2078.5,2077.6,1.20331151]
[1772785787431,0.001,2078.5,2077.6,1.20441151]
[1772785787936,0.001,2078.1,2077.6,1.20441151]
[1772785788135,0.001,2078.5,2077.6,1.20441151]
[1772785789231,0.001,2078.5,2077.6,7.55441151]
[1772785793153,0.001,2078.5,2077.6,10.99830741]
[1772785793451,0.001,2078.5,2077.6,7.55441151]
[1772785793818,0.001,2078.5,2077.6,10.99830741]
[1772785794747,0.001,2078.5,2077.6,1.20441151]
[1772785795337,0.001,2078.5,2077.6,0.0011]
[1772785799337,1.20302199,2078.1,2077.6,0.0011]
[1772785799545,1.20302199,2078.1,2077.8,0.0011]
[1772785799728,0.78650645,2078.0,2077.4,0.0011]
[1772785800255,0.78650645,2078.0,2077.5,0.0011]
[1772785801252,1.20302199,2078.1,2077.5,0.0011]
[1772785801425,0.78650645,2077.9,2077.3,0.87858714]
[1772785801627,1.20302199,2078.1,2077.1,0.0011]
[1772785801628,0.78650645,2077.5,2077.1,0.0011]
[1772785802240,0.78650645,2077.7,2077.1,0.0011]
[1772785802855,0.78650645,2077.5,2077.1,0.0011]
[1772785803163,0.78650645,2077.5,2075.8,1.57781192]
[1772785803164,7.29357904,2077.2,2075.8,1.57781192]
[1772785803334,0.78650645,2077.1,2075.9,0.0011]
[1772785803653,1.20365912,2077.0,2075.9,0.0011]
[1772785804056,0.78650645,2076.9,2075.9,0.0011]
[1772785804538,1.20365912,2077.0,2075.9,0.0011]
[1772785808247,2.38965912,2077.0,2075.7,1.20441296]
[1772785809157,2.39865912,2077.0,2075.7,1.20441296]
[1772785809867,1.96816358,2076.8,2075.8,0.0011]
[1772785810162,1.96816358,2076.5,2075.7,0.0011]
[1772785810361,2.15655801,2076.7,2075.2,1.20580316]
[1772785810538,3.36355801,2076.7,2075.2,1.20580316]
[1772785810734,2.15655801,2076.6,2075.2,1.20580316]
[1772785811362,1.96816358,2076.4,2075.2,1.20580316]
[1772785811573,2.15535801,2076.3,2075.2,1.20580316]
[1772785811868,1.20412291,2076.2,2075.2,1.20580316]
[1772785812067,1.20412291,2076.2,2075.2,0.0011]
[1772785812432,1.20412291,2076.2,2075.9,0.0011]
[1772785812636,2.42812291,2076.2,2075.6,0.0011]
[1772785812839,1.20412291,2076.2,2075.6,0.0011]
[1772785813546,1.20412291,2076.2,2075.7,0.0011]
[1772785813856,3.35946427,2076.3,2075.7,0.0011]
[1772785815058,2.15535801,2076.3,2075.7,0.0011]
[1772785816837,2.05159852,2076.3,2075.6,0.0011]
[1772785817038,1.20477665,2076.8,2075.6,0.0011]
[1772785817847,0.001,2076.8,2075.6,0.0011]
[1772785821985,1.96976752,2076.5,2075.6,0.0011]
[1772785822188,1.20400693,2076.4,2075.6,0.0011]
[1772785823592,1.96976752,2076.3,2075.6,0.0011]
[1772785823955,1.96976752,2076.3,2075.0,1.20481927]
[1772785824183,1.20412291,2076.2,2075.0,1.20481927]
[1772785824885,1.20412291,2076.2,2075.8,0.0011]
[1772785825186,1.20412291,2076.2,2075.0,1.20481927]
[1772785825384,1.20412291,2076.2,2075.5,0.0011]
[1772785826284,4.81649166,2076.3,2075.5,0.0011]
[1772785828468,0.001,2076.6,2075.5,0.0011]
[1772785832160,0.001,2076.6,2075.5,3.5105319]
[1772785832374,0.001,2076.6,2075.6,1.20447099]
[1772785833260,0.001,2076.6,2075.7,1.197]
[1772785834404,0.001,2076.6,2075.5,0.0011]
[1772785835965,0.15048499,2076.6,2075.5,0.0011]
[1772785836594,1.96976752,2076.4,2075.5,0.0011]
[1772785837296,1.96976752,2076.4,2075.9,0.0011]
[1772785837471,1.96976752,2076.4,2075.5,0.0011]
[1772785837672,1.97076752,2076.4,2075.5,0.0011]
[1772785837872,0.001,2076.4,2075.5,0.0011]
[1772785838071,0.001,2076.4,2075.6,0.0011]
[1772785839801,0.001,2076.4,2074.9,0.86621915]
[1772785839802,1.96976752,2075.7,2074.9,0.86621915]
[1772785839997,3.55886632,2075.8,2074.9,0.86621915]
[1772785840297,2.28986632,2075.8,2074.3,1.20522585]
[1772785840683,1.20441296,2075.7,2074.2,4.82090774]
[1772785841696,0.14948499,2075.6,2074.2,4.82090774]
[1772785841905,1.96976752,2075.4,2074.2,1.20528396]
[1772785842279,0.14948499,2075.3,2074.1,2.10329307]
[1772785842878,1.20470316,2075.2,2074.1,2.10329307]
[1772785843601,1.20470316,2075.2,2074.1,0.8979876]
[1772785843801,1.96976752,2075.1,2074.1,2.10332935]
[1772785844506,1.20470316,2075.2,2074.1,2.10332935]
[1772785845076,4.81881264,2075.4,2074.1,2.10332935]
[1772785847094,0.14948499,2075.7,2074.1,2.10332935]
[1772785847295,1.20447099,2075.6,2074.1,2.10332935]
[1772785848908,3.49404723,2076.2,2074.1,2.10332935]
[1772785849101,4.81674183,2076.1,2074.1,2.10332935]
[1772785849410,1.20418091,2076.2,2074.1,2.10332935]
[1772785849793,3.17394843,2076.2,2074.1,2.10332935]
[1772785849993,3.17394843,2076.2,2074.3,0.0011]
[1772785850310,3.17394843,2076.2,2074.4,1.255]
[1772785850311,1.96976752,2075.9,2074.4,1.255]
[1772785851290,1.96976752,2075.9,2074.5,1.20510966]
[1772785851291,1.20435494,2075.8,2074.5,1.20510966]
[1772785851582,1.20435494,2075.8,2074.4,6.07543865]
[1772785851583,1.96976752,2075.6,2074.4,1.20515759]
[1772785852187,3.25976752,2075.6,2074.4,1.20515759]
[1772785852389,0.14948499,2075.5,2074.3,1.20629387]
[1772785853088,1.96976752,2075.6,2074.3,1.20629387]
[1772785854011,1.20452902,2075.5,2074.3,0.0011]
[1772785856188,1.35378192,2075.9,2074.3,0.0011]
[1772785856588,1.20429693,2075.9,2074.3,0.0011]
[1772785857918,1.20428452,2076.0,2074.3,0.0011]
[1772785858220,1.20500693,2076.4,2074.4,1.20516775]
[1772785858625,1.20500693,2076.4,2074.5,0.065536]
[1772785858821,1.20500693,2076.4,2074.6,1.263]
[1772785859714,0.001,2076.4,2074.7,0.065536]
[1772785860219,0.001,2076.4,2074.8,1.20493541]
[1772785860424,0.001,2076.4,2074.9,0.065536]
[1772785860792,0.001,2076.4,2074.9,3.5094319]
[1772785860993,0.001,2076.4,2075.1,0.065536]
[1772785862110,0.001,2076.4,2075.0,0.065536]
[1772785862312,0.001,2076.4,2075.0,3.5094319]
[1772785862904,0.001,2076.2,2075.1,1.20476121]
[1772785863105,1.97076752,2076.2,2074.6,4.81972104]
[1772785864423,0.001,2076.2,2074.6,4.81972104]
[1772785864792,0.001,2076.2,2074.8,1.20493541]
[1772785866800,0.001,2076.2,2075.0,1.20481927]
[1772785867001,0.001,2076.2,2075.1,1.265]
[1772785867225,0.001,2076.2,2075.1,4.7088959]
[1772785867434,0.001,2076.2,2075.1,1.265]
[1772785868400,2.28986632,2077.5,2075.3,2.60846311]
[1772785868603,0.001,2078.3,2076.3,0.065536]
[1772785868604,0.33492454,2077.4,2076.3,0.065536]
[1772785868899,4.81270238,2078.3,2076.5,1.20394895]
[1772785871200,0.001,2078.3,2076.6,0.72858388]
[1772785871738,0.001,2078.3,2076.5,1.20394895]
[1772785872124,0.001,2078.3,2076.5,1.93253283]
[1772785872440,0.001,2078.3,2076.6,0.72858388]
[1772785873544,0.001,2078.3,2076.7,1.203833]
[1772785873934,0.001,2078.3,2076.8,0.065536]
[1772785874241,0.001,2078.3,2076.8,0.79411988]
[1772785874441,0.001,2078.3,2077.0,0.065536]
[1772785874817,0.001,2078.1,2077.0,0.42173644]
[1772785875441,0.001,2078.1,2077.1,1.20360117]
[1772785875658,0.001,2078.1,2077.2,1.268]
[1772785877562,0.001,2078.1,2077.3,1.20348529]
[1772785880419,0.001,2078.1,2077.2,2.47152046]
[1772785880622,0.001,2078.1,2077.0,1.20361537]
[1772785881539,1.96498303,2077.9,2076.7,3.21514705]
[1772785881849,0.001,2078.1,2076.7,3.21514705]
[1772785883345,0.001,2078.1,2076.7,3.94373093]
[1772785883555,0.001,2078.1,2076.7,3.21514705]
[1772785886825,0.001,2078.1,2076.9,0.0011]
[1772785887145,0.001,2077.9,2077.0,1.27]
[1772785888338,0.001,2077.9,2077.1,1.20360117]
[1772785891558,0.001,2077.9,2077.0,2.47365847]
[1772785892755,0.001,2077.9,2077.0,1.27]
[1772785892951,0.001,2077.9,2077.0,2.47365238]
[1772785893359,0.001,2077.9,2076.9,0.0011]
[1772785894833,1.96498303,2077.8,2076.9,0.0011]
[1772785895056,0.001,2077.9,2076.9,0.0011]
[1772785898748,0.001,2077.9,2077.0,2.2916933]
[1772785898947,0.001,2077.9,2077.0,2.2927933]
[1772785899152,0.001,2077.7,2077.0,2.2927933]
[1772785899549,0.001,2078.1,2077.0,2.2927933]
[1772785899749,0.001,2078.1,2077.1,1.20360117]
[1772785899964,0.001,2078.1,2077.2,1.269]
[1772785901967,0.001,2078.1,2077.3,1.20348529]
[1772785902543,0.001,2078.1,2077.2,2.4725053]
[1772785903843,0.001,2078.1,2077.2,1.269]
[1772785904043,0.001,2078.1,2077.2,2.47253818]
[1772785907467,0.001,2078.1,2077.2,1.269]
[1772785908359,1.20313778,2077.9,2077.0,0.0011]
[1772785908668,1.96498303,2077.7,2077.0,0.0011]
[1772785908874,3.4930041,2077.9,2077.0,0.0011]
[1772785909293,1.96498303,2077.7,2077.0,0.0011]
[1772785909662,4.25484935,2077.7,2077.0,0.0011]
[1772785909966,1.96498303,2077.7,2077.0,0.0011]
[1772785910173,4.25484935,2077.7,2076.7,1e-08]
[1772785910485,1.20331151,2077.6,2076.7,1e-08]
[1772785910685,3.49317783,2077.6,2076.7,1e-08]
[1772785911668,1.20331151,2077.6,2076.7,1e-08]
[1772785911983,1.20331151,2077.6,2077.2,0.0011]
[1772785912196,1.20331151,2077.6,2076.7,1e-08]
[1772785912487,1.20331151,2077.6,2077.0,0.0011]
[1772785914374,0.001,2077.7,2077.0,0.0011]
[1772785917873,1.96598303,2077.7,2077.0,0.0011]
[1772785918669,1.20331151,2077.6,2077.0,0.0011]
[1772785920395,2.48831151,2077.6,2077.0,0.0011]
[1772785920695,1.20331151,2077.6,2077.0,0.0011]
[1772785920895,4.81424605,2077.7,2077.0,0.0011]
[1772785922807,0.001,2077.7,2077.0,0.0011]
[1772785923608,1.20406234,2078.1,2077.0,0.72968388]
[1772785923918,0.001,2078.1,2077.0,0.72968388]
[1772785924215,1.204023,2078.1,2077.0,3.02137718]
[1772785924403,0.001,2078.1,2077.0,3.02137718]
[1772785924605,0.001,2078.1,2077.2,2.2927933]
[1772785924793,0.001,2078.1,2077.3,1.20348529]
[1772785925519,0.001,2078.1,2077.4,2.2916933]
[1772785926914,0.001,2078.1,2077.5,1.20336943]
[1772785927694,0.001,2078.3,2077.7,2.2916933]
[1772785928016,0.001,2078.5,2077.8,3.5526933]
[1772785928221,0.001,2078.5,2077.8,1.261]
[1772785928919,0.001,2078.5,2077.9,1.20313778]
[1772785929908,0.001,2078.5,2077.8,2.46416537]
[1772785933721,0.001,2078.5,2077.8,1.261]
[1772785934195,0.001,2078.5,2077.8,2.4641656]
[1772785934401,0.001,2078.5,2077.8,1.261]
[1772785934598,0.001,2078.5,2077.8,2.46418971]
[1772785935818,0.001,2078.5,2077.8,1.261]
[1772785936025,0.001,2078.5,2077.8,2.4641911]
[1772785936822,0.001,2078.3,2077.8,1.261]
[1772785937115,0.001,2078.3,2077.8,2.46418322]
[1772785939826,0.001,2078.3,2077.8,1.261]
[1772785940603,0.001,2078.3,2077.8,2.46419053]
[1772785942127,0.001,2078.3,2077.8,1.261]
[1772785942339,0.001,2078.3,2077.8,2.464193]
[1772785948621,0.001,2078.3,2078.0,0.0011]
[1772785948814,0.001,2078.1,2078.0,0.0011]
[1772785949026,0.001,2078.5,2078.0,0.0011]
[1772785949223,0.001,2079.1,2078.0,0.0011]
[1772785949626,0.001,2079.1,2078.0,0.72968388]
[1772785950173,0.001,2079.1,2078.0,1.20417988]
[1772785951045,0.001,2079.1,2078.0,1.93276376]
[1772785951245,0.001,2079.1,2078.2,2.2916933]
[1772785951444,0.001,2079.4,2078.6,2.2916933]
[1772785951749,0.001,2079.4,2078.7,2.2916933]
[1772785951913,0.001,2079.4,2078.8,1.259]
[1772785952121,0.001,2079.4,2078.9,1.20255904]
[1772785953724,1.20186529,2080.1,2078.9,1.20255904]
[1772785955925,1.20186529,2080.1,2079.0,0.72858388]
[1772785956419,1.53383509,2080.2,2079.1,1.20244336]
[1772785956649,1.53383509,2080.2,2079.2,0.72858388]
[1772785956855,1.53383509,2080.2,2079.1,1.20244336]
[1772785956856,1.53383509,2080.2,2079.3,1.26]
[1772785958047,1.53380954,2080.2,2079.3,1.26]
[1772785958251,1.53380954,2080.2,2079.4,1.20226988]
[1772785958469,4.80667374,2080.5,2079.4,1.20226988]
[1772785960418,0.001,2080.6,2079.5,0.72858388]
[1772785960643,0.001,2080.6,2079.4,1.20226988]
[1772785961524,0.002,2080.0,2079.4,1.20226988]
[1772785966051,0.002,2080.2,2079.4,1.20226988]
[1772785966420,0.001,2080.6,2079.7,0.065536]
[1772785966639,0.001,2080.6,2079.8,1.26]
[1772785969524,0.001,2080.6,2079.8,2.46203308]
[1772785969726,0.001,2080.6,2079.2,1.2023277]
[1772785969922,0.001,2080.6,2079.3,1.26]
[1772785971747,0.001,2080.6,2079.4,1.20226988]
[1772785976066,0.001,2080.6,2079.6,0.001]
[1772785976268,0.002,2080.4,2079.6,0.001]
[1772785986852,2.2753973,2080.4,2079.6,0.001]
[1772785987358,1.20174974,2080.3,2079.6,0.001]
[1772785989187,1.20174974,2080.3,2079.8,0.001]
[1772785989355,0.002,2080.2,2079.8,0.001]
[1772785990076,0.002,2080.2,2079.1,0.001]
[1772785991662,4.25696385,2080.2,2079.1,0.001]
[1772785992077,2.29040966,2080.1,2079.1,0.001]
[1772785992382,1.96655419,2080.2,2079.1,0.001]
[1772785992383,4.25696385,2080.2,2079.1,0.001]
[1772785992981,0.14948499,2080.1,2079.1,0.001]
[1772785993182,2.43989465,2080.1,2079.1,0.001]
[1772785993390,1.20192307,2080.0,2079.1,0.001]
[1772785993592,1.96455419,2079.9,2079.1,0.001]
[1772785994576,0.14948499,2079.9,2079.1,0.001]
[1772785995383,1.20203865,2079.8,2079.1,0.001]
[1772785997071,2.42203865,2079.8,2079.1,0.001]
[1772785998363,2.11234239,2079.7,2078.9,0.001]
[1772785999286,1.225,2079.7,2078.9,0.001]
[1772785999467,1.20215426,2079.6,2078.9,0.001]
[1772786001578,4.80861704,2079.8,2079.1,0.001]
[1772786001783,4.80815463,2079.9,2079.1,0.001]
[1772786001980,0.002,2079.5,2079.1,0.001]
[1772786006101,1.20198086,2079.9,2079.1,0.001]
[1772786007306,0.002,2080.0,2079.1,0.001]
[1772786007493,0.006,2080.0,2079.1,0.001]
[1772786009005,1.9628574,2079.9,2079.1,0.001]
[1772786009420,1.20203865,2079.8,2079.1,0.001]
[1772786010477,0.004,2079.7,2079.1,0.001]
[1772786012113,0.004,2079.6,2079.1,0.001]
[1772786012735,5.45530571,2079.8,2078.9,0.001]
[1772786012736,1.9628574,2079.5,2078.9,0.001]
[1772786012888,1.244,2079.4,2078.6,0.001]
[1772786013217,3.53740966,2079.4,2078.6,0.001]
[1772786013512,1.2023277,2079.3,2078.6,0.001]
[1772786015321,1.2023277,2079.3,2078.8,0.001]
[1772786015717,0.003,2079.2,2078.8,0.001]
[1772786016292,1.2023277,2079.3,2078.8,0.001]
[1772786016510,1.2053277,2079.3,2078.8,0.001]
[1772786017699,4.81131082,2079.5,2078.8,0.001]
[1772786017700,0.003,2079.2,2078.8,0.001]
[1772786018016,0.002,2079.5,2078.8,0.001]
[1772786018804,0.003,2079.4,2078.8,0.001]
[1772786025415,0.003,2079.3,2078.8,0.001]
[1772786025724,0.002,2079.5,2078.8,0.001]
[1772786028425,0.001,2079.2,2078.8,0.001]
[1772786029931,0.004,2079.2,2078.8,0.001]
[1772786030120,0.001,2079.2,2078.8,0.001]
[1772786033504,0.003,2079.1,2078.8,0.001]
[1772786039598,0.001,2079.2,2078.8,0.001]
[1772786039818,0.004,2079.2,2078.8,0.001]
[1772786040020,0.001,2079.2,2079.0,0.0011]
[1772786041807,0.004,2079.2,2079.0,0.0011]
[1772786043830,0.001,2079.2,2079.0,0.0011]
[1772786046040,0.002,2079.5,2079.0,0.0011]
[1772786046214,0.003,2079.4,2079.0,0.0011]
[1772786048438,0.002,2079.5,2079.0,0.0011]
[1772786048632,0.003,2079.4,2079.0,0.0011]
[1772786049345,0.002,2079.5,2079.0,0.0011]
[1772786049346,0.003,2079.3,2079.0,0.0011]
[1772786049643,0.003,2079.4,2079.1,1.228]
[1772786050019,0.002,2079.7,2079.1,1.228]
[1772786050224,0.002,2079.7,2079.2,0.04765201]
[1772786051359,0.002,2079.7,2079.1,2.43042012]
[1772786052641,0.002,2079.7,2079.1,2.43142012]
[1772786052858,0.002,2079.2,2079.1,2.43142012]
[1772786053046,0.002,2079.7,2079.1,2.43142012]
[1772786053348,0.002,2079.4,2079.1,2.43142012]
[1772786056135,0.002,2079.4,2079.1,1.229]
[1772786056341,0.002,2079.4,2079.1,0.001]
[1772786056552,0.002,2079.4,2078.8,0.001]
[1772786065772,0.78520686,2079.1,2078.0,0.0011]
[1772786065969,3.49059388,2079.0,2078.0,0.0011]
[1772786066143,1.2025012,2079.0,2078.1,0.0031]
[1772786068236,4.81100481,2079.2,2078.1,0.0031]
[1772786072862,0.001,2079.2,2078.1,0.0031]
[1772786074590,0.78520686,2079.1,2078.1,0.0031]
[1772786074796,0.78520686,2078.9,2078.1,0.0031]
[1772786076775,1.2025012,2079.0,2078.1,0.0031]
[1772786076776,2.4435012,2079.0,2078.1,0.0031]
[1772786076977,1.2025012,2079.0,2078.1,0.0031]
[1772786077474,1.2025012,2079.0,2078.3,0.0011]
[1772786078957,4.81000481,2079.1,2078.4,0.0031]
[1772786081175,1.20344336,2079.2,2078.4,0.0031]
[1772786083155,0.001,2079.2,2078.4,0.0031]
[1772786088874,0.001,2079.0,2078.4,0.0031]
[1772786089573,0.001,2079.0,2078.3,0.0011]
[1772786089775,0.001,2079.0,2078.4,0.0031]
[1772786094774,0.001,2079.0,2078.5,0.0031]
[1772786095089,0.001,2079.0,2078.4,0.0031]
[1772786097295,0.001,2079.0,2078.5,0.0031]
[1772786097700,0.001,2079.0,2078.6,0.0031]
[1772786097991,0.001,2079.0,2078.3,0.0011]
[1772786098191,0.001,2079.0,2078.4,0.0031]
[1772786099897,1.2035012,2079.0,2078.4,0.0031]
[1772786100300,1.2035012,2079.0,2078.5,0.0031]
[1772786100500,1.2035012,2079.0,2078.5,0.0011]
[1772786100888,0.001,2078.8,2078.5,0.0011]
[1772786102588,0.001,2078.8,2078.6,0.0031]
[1772786103292,0.001,2078.8,2078.7,0.0031]
[1772786103482,0.001,2078.8,2078.6,0.0031]
[1772786104567,0.001,2079.0,2078.5,0.0011]
[1772786104979,0.001,2079.0,2078.6,0.0021]
[1772786108380,0.001,2079.0,2078.5,0.0011]
[1772786108575,0.001,2079.0,2078.6,0.0021]
[1772786109498,0.001,2079.0,2078.7,0.0021]
[1772786109690,0.001,2079.0,2078.6,0.0021]
[1772786110898,0.001,2079.0,2078.7,0.0021]
[1772786111070,0.001,2079.0,2078.6,0.0021]
[1772786112506,0.001,2079.0,2078.8,0.0011]
[1772786115907,0.001,2079.0,2078.5,0.0011]
[1772786116084,0.001,2079.0,2078.6,0.0021]
[1772786116797,0.001,2079.0,2078.7,0.0021]
[1772786116995,0.001,2079.0,2078.6,0.0021]
[1772786119106,0.001,2079.0,2078.7,0.0021]
[1772786119318,0.001,2079.0,2078.6,0.0021]
[1772786119681,0.001,2079.0,2078.5,0.0011]
[1772786119881,0.001,2079.0,2078.6,0.0021]
[1772786120915,0.001,2079.0,2078.7,0.0021]
[1772786121208,0.001,2079.0,2078.6,0.0021]
[1772786121382,0.001,2079.2,2078.5,0.0011]
[1772786123214,0.001,2079.2,2078.6,0.0011]
[1772786124503,0.001,2079.2,2078.7,0.0011]
[1772786124701,0.001,2079.0,2078.7,0.0011]
[1772786125102,0.001,2079.0,2078.8,0.0011]
[1772786126699,0.001,2079.0,2078.7,0.0011]
[1772786127023,1.97484556,2078.6,2078.5,0.0011]
[1772786127194,0.001,2079.0,2078.6,0.0011]
[1772786128104,0.001,2079.0,2078.7,0.0011]
[1772786128422,0.001,2079.0,2078.6,0.0011]
[1772786129627,0.001,2079.0,2078.7,0.0011]
[1772786129823,0.002,2079.4,2078.5,0.0011]
[1772786131191,0.002,2079.4,2078.5,3.45078014]
[1772786131394,0.002,2079.4,2078.6,1.2027326]
[1772786135956,0.002,2079.4,2078.5,4.81203043]
[1772786136534,0.002,2079.4,2078.8,0.0011]
[1772786136733,0.001,2079.2,2078.8,0.0011]
[1772786151573,0.001,2079.2,2078.5,11.16203043]
[1772786152673,0.002,2079.4,2078.5,11.16203043]
[1772786155478,0.002,2079.4,2078.5,15.47413061]
[1772786159081,0.002,2079.4,2078.6,10.66210018]
[1772786159453,0.002,2079.4,2078.8,3.45592356]
[1772786159654,0.002,2079.4,2078.9,4.65592356]
[1772786159887,4.8096923,2080.2,2078.9,4.65592356]
[1772786159888,1.2038254,2080.2,2079.3,4.31210018]
[1772786160072,1.2038254,2080.2,2079.4,1.201]
[1772786160455,0.002,2080.2,2079.5,1.20221207]
[1772786167468,0.002,2080.2,2079.3,4.80931023]
[1772786167469,0.002,2080.2,2079.3,4.80907954]
[1772786167696,0.002,2080.2,2079.4,1.205]
[1772786169077,0.002,2080.2,2079.5,1.20221207]
[1772786169613,0.002,2080.2,2079.4,2.40723082]
[1772786172140,0.001,2080.6,2079.5,3.45458644]
[1772786172536,1.2025778,2080.6,2079.5,3.45458644]
[1772786172718,1.2025778,2080.6,2079.4,12.21181726]
[1772786173121,1.2025778,2080.6,2079.6,0.001]
[1772786173449,0.002,2080.0,2079.6,0.001]
[1772786173637,0.001,2080.6,2079.6,0.001]
[1772786174435,0.002,2080.2,2079.6,0.001]
[1772786174622,0.001,2080.6,2079.6,0.001]
[1772786174830,0.002,2080.5,2079.6,0.001]
[1772786175579,0.002,2080.5,2079.6,1.20315426]
[1772786176209,0.002,2080.5,2079.6,0.001]
[1772786177921,0.002,2080.5,2079.6,1.21]
[1772786179931,0.002,2080.5,2079.7,1.20209645]
[1772786181236,0.002,2080.5,2079.6,2.41210763]
[1772786187152,0.002,2080.5,2079.8,0.001]
[1772786187535,0.002,2080.2,2079.8,0.001]
[1772786195666,0.002,2080.2,2079.5,0.001]
[1772786196639,1.96100725,2079.9,2079.5,0.001]
[1772786196940,4.25508554,2080.2,2079.5,0.001]
[1772786197140,2.29207829,2080.1,2079.5,0.001]
[1772786197471,1.20186529,2080.1,2079.5,0.001]
[1772786199544,3.49394358,2080.1,2079.5,0.001]
[1772786199858,1.96100725,2079.9,2079.5,0.001]
[1772786200445,0.78516831,2079.7,2079.3,0.001]
[1772786201775,1.20215426,2079.6,2079.3,0.001]
[1772786201949,1.20215426,2079.6,2079.5,0.001]
[1772786203744,4.80861704,2079.8,2079.5,0.001]
[1772786204671,4.80861704,2079.8,2079.3,0.001]
[1772786210876,4.81061704,2080.0,2079.3,0.001]
[1772786213879,4.81061704,2080.0,2079.5,0.001]
[1772786214281,0.002,2079.6,2079.5,0.001]
[1772786231892,0.002,2079.8,2079.5,0.001]
[1772786234508,0.002,2079.9,2079.6,0.47951995]
[1772786238901,0.0039,2079.9,2079.6,0.47951995]
[1772786239104,0.0019,2079.8,2079.6,0.47951995]
[1772786239684,0.48605719,2079.7,2079.3,0.001]
[1772786240009,0.48415719,2079.7,2079.3,0.001]
[1772786240378,0.0019,2079.8,2079.3,0.48051995]
[1772786240578,0.0019,2079.7,2079.3,0.48051995]
[1772786240774,0.0019,2079.8,2079.4,0.47951995]
[1772786240980,1.20398086,2079.9,2079.5,0.47951995]
[1772786241602,0.002,2079.9,2079.7,0.001]
[1772786242393,0.002,2079.8,2079.7,0.001]
[1772786253928,0.002,2079.8,2079.5,0.001]
[1772786254711,0.002,2079.8,2079.3,0.001]
[1772786254935,0.78458969,2079.6,2079.1,0.001]
[1772786255232,0.78658969,2079.6,2079.1,0.001]
[1772786256233,1.20221207,2079.5,2079.1,0.001]
[1772786258337,4.81084828,2079.6,2079.1,0.001]
[1772786265862,5.59543797,2079.6,2079.1,0.001]
[1772786266015,0.78458969,2079.4,2078.7,0.001]
[1772786267249,1.2023277,2079.3,2078.7,0.001]
[1772786268016,1.2023277,2079.3,2078.8,0.001]
[1772786269446,0.78458969,2079.2,2078.8,0.001]
[1772786276655,1.20244336,2079.1,2078.8,0.001]
[1772786277268,1.20244336,2079.1,2078.5,0.0011]